fUST/lending_fUST_20240603
["ID","MTS","AMOUNT","RATE_DAILY","PERIOD"]
[328446419,1717399846760,-500.0,0.00021917,2]
[328446420,1717399846770,-151.0,0.00021917,2]
[328446421,1717399846779,-151.0,0.00021917,2]
[328446422,1717399846789,-151.0,0.00021917,2]
[328446423,1717399846798,-165.41470994,0.00021917,2]
[328446424,1717399846808,-294.78193,0.00021917,2]
[328446425,1717399846817,-501.6317923,0.00021917,2]
[328446426,1717399846827,-505.65150134,0.00021917,2]
[328446427,1717399846836,-500.0,0.00021917,2]
[328446428,1717399846846,-500.0,0.00021917,2]
[328446429,1717399846856,-500.47476742,0.00021917,2]
[328446430,1717399846866,-428.49829647,0.00021917,2]
[328446431,1717399846875,-161.0184605,0.00021917,2]
[328446432,1717399846884,-507.49275625,0.00021917,2]
[328446433,1717399846893,-500.0,0.00021917,2]
[328446434,1717399846903,-500.0,0.00021917,2]
[328446435,1717399846912,-500.17313353,0.00021917,2]
[328446436,1717399846922,-500.0,0.00021917,2]
[328446437,1717399846931,-582.08,0.00021917,2]
[328446438,1717399846940,-200.0,0.00021917,2]
[328446439,1717399846950,-500.0,0.00021917,2]
[328446440,1717399846959,-500.0,0.00021917,2]
[328446441,1717399846968,-500.0,0.00021917,2]
[328446442,1717399846978,-613.03,0.00021917,2]
[328446443,1717399846988,-500.0,0.00021917,2]
[328446444,1717399846997,-1276.87,0.00021917,2]
[328446445,1717399847007,-503.08248034,0.00021917,2]
[328446446,1717399847016,-500.0,0.00021917,2]
[328446447,1717399847025,-500.0,0.00021917,2]
[328446448,1717399847035,-500.0,0.00021917,2]
[328446449,1717399847044,-504.08624409,0.00021917,2]
[328446450,1717399847053,-500.0,0.00021917,2]
[328446451,1717399847062,-500.0,0.00021917,2]
[328446452,1717399847071,-734.05,0.00021917,2]
[328446453,1717399847080,-500.0,0.00021917,2]
[328446454,1717399847089,-500.0,0.00021917,2]
[328446455,1717399847098,-503.1110389,0.00021917,2]
[328446456,1717399847108,-500.0,0.00021917,2]
[328446457,1717399847117,-500.0,0.00021917,2]
[328446458,1717399847126,-500.0,0.00021917,2]
[328446459,1717399847135,-79.07546412,0.00021917,2]
[328446460,1717399847492,-420.92453588,0.00021917,2]
[328446461,1717399847501,-500.0,0.00021917,2]
[328446462,1717399847512,-500.0,0.00021917,2]
[328446463,1717399847521,-500.0,0.00021917,2]
[328446464,1717399847531,-500.0,0.00021917,2]
[328446465,1717399847541,-204.53078925,0.00021917,2]
[328446466,1717399847553,-295.46921075,0.00021917,2]
[328446467,1717399847562,-500.0,0.00021917,2]
[328446468,1717399847572,-500.0,0.00021917,2]
[328446469,1717399847581,-500.0,0.00021917,2]
[328446470,1717399847591,-410.49283902,0.00021917,2]
[328446471,1717399847602,-128.33716098,0.00021917,2]
[328446472,1717399847612,-1665.99,0.00021917,2]
[328446473,1717399847621,-500.0,0.00021917,2]
[328446474,1717399847630,-501.8308752,0.00021917,2]
[328446475,1717399847640,-500.0,0.00021917,2]
[328446476,1717399847649,-503.86460609,0.00021917,2]
[328446477,1717399847658,-500.0,0.00021917,2]
[328446478,1717399847667,-779.88,0.00021917,2]
[328446479,1717399847677,-500.0,0.00021917,2]
[328446480,1717399847686,-500.0,0.00021917,2]
[328446481,1717399847695,-500.0,0.00021917,2]
[328446482,1717399847704,-500.0,0.00021917,2]
[328446483,1717399847713,-120.09735673,0.00021917,2]
[328446484,1717399847727,-379.90264327,0.00021917,2]
[328446485,1717399847736,-500.0,0.00021917,2]
[328446486,1717399847746,-828.75,0.00021917,2]
[328446487,1717399847756,-500.0,0.00021917,2]
[328446488,1717399847766,-500.0,0.00021917,2]
[328446489,1717399847776,-1294.44,0.00021917,2]
[328446490,1717399847785,-500.0,0.00021917,2]
[328446491,1717399847795,-500.0,0.00021917,2]
[328446492,1717399847804,-500.0,0.00021917,2]
[328446493,1717399847813,-500.0,0.00021917,2]
[328446494,1717399847823,-507.51304721,0.00021917,2]
[328446495,1717399847832,-508.72418652,0.00021917,2]
[328446496,1717399847842,-500.0,0.00021917,2]
[328446497,1717399847851,-500.0,0.00021917,2]
[328446498,1717399847862,-500.0,0.00021917,2]
[328446499,1717399847871,-500.0,0.00021917,2]
[328446500,1717399847881,-186.72313088,0.00021917,2]
[328446501,1717399847890,-500.0,0.00021917,2]
[328446502,1717399847900,-500.0,0.00021917,2]
[328446503,1717399847911,-500.0,0.00021917,2]
[328446504,1717399847920,-502.90763733,0.00021917,2]
[328446505,1717399847930,-500.0,0.00021917,2]
[328446506,1717399847940,-500.0,0.00021917,2]
[328446507,1717399847950,-502.5077142,0.00021917,2]
[328446509,1717399847968,-500.0,0.00021917,2]
[328446510,1717399847980,-1425.63,0.00021917,2]
[328446511,1717399847990,-500.0,0.00021917,2]
[328446512,1717399848000,-500.0,0.00021917,2]
[328446513,1717399848009,-500.31743888,0.00021917,2]
[328446514,1717399848019,-500.0,0.00021917,2]
[328446515,1717399848028,-514.26466598,0.00021917,2]
[328446516,1717399848038,-500.0,0.00021917,2]
[328446517,1717399848048,-675.62,0.00021917,2]
[328446518,1717399848057,-500.55881616,0.00021917,2]
[328446519,1717399848067,-500.0,0.00021917,2]
[328446520,1717399848076,-500.0,0.00021917,2]
[328446521,1717399848086,-500.0,0.00021917,2]
[328446522,1717399848095,-500.0,0.00021917,2]
[328446523,1717399848105,-500.0,0.00021917,2]
[328446524,1717399848115,-500.0,0.00021917,2]
[328446525,1717399848124,-500.0,0.00021917,2]
[328446526,1717399848134,-500.0,0.00021917,2]
[328446527,1717399848143,-553.4,0.00021917,2]
[328446528,1717399848152,-502.47338556,0.00021917,2]
[328446529,1717399848162,-502.60501098,0.00021917,2]
[328446530,1717399848171,-1955.51,0.00021917,2]
[328446531,1717399848181,-1333.99,0.00021917,2]
[328446532,1717399848191,-500.0,0.00021917,2]
[328446533,1717399848200,-500.0,0.00021917,2]
[328446534,1717399848210,-500.0,0.00021917,2]
[328446535,1717399848219,-500.0,0.00021917,2]
[328446536,1717399848229,-827.61,0.00021917,2]
[328446537,1717399848240,-500.0,0.00021917,2]
[328446538,1717399848249,-686.16,0.00021917,2]
[328446539,1717399848259,-500.0,0.00021917,2]
[328446540,1717399848269,-500.0,0.00021917,2]
[328446541,1717399848279,-500.0,0.00021917,2]
[328446542,1717399848288,-500.0,0.00021917,2]
[328446543,1717399848298,-500.0,0.00021917,2]
[328446544,1717399848307,-500.0,0.00021917,2]
[328446545,1717399848317,-500.0,0.00021917,2]
[328446546,1717399848326,-572.44,0.00021917,2]
[328446547,1717399848336,-509.68,0.00021917,2]
[328446548,1717399848349,-500.0,0.00021917,2]
[328446549,1717399848358,-500.0,0.00021917,2]
[328446550,1717399848368,-766.22,0.00021917,2]
[328446551,1717399848377,-951.39,0.00021917,2]
[328446552,1717399848386,-151.0,0.00021917,2]
[328446553,1717399848396,-151.0,0.00021917,2]
[328446554,1717399848406,-151.0,0.00021917,2]
[328446555,1717399848416,-151.0,0.00021917,2]
[328446556,1717399848429,-151.0,0.00021917,2]
[328446557,1717399848627,-151.0,0.00021917,2]
[328446558,1717399848643,-189.668744,0.00021917,2]
[328446559,1717399848653,-1483.07,0.00021917,2]
[328446560,1717399848662,-500.0,0.00021917,2]
[328446561,1717399848671,-505.26613625,0.00021917,2]
[328446562,1717399848680,-500.0,0.00021917,2]
[328446563,1717399848689,-500.0,0.00021917,2]
[328446564,1717399848698,-505.71241556,0.00021917,2]
[328446565,1717399848707,-504.30763767,0.00021917,2]
[328446566,1717399848717,-500.0,0.00021917,2]
[328446567,1717399848726,-1179.07,0.00021917,2]
[328446568,1717399848735,-500.0,0.00021917,2]
[328446569,1717399848744,-500.0,0.00021917,2]
[328446570,1717399848754,-541.71769285,0.00021917,2]
[328446571,1717399848763,-503.81145018,0.00021917,2]
[328446572,1717399848772,-500.0,0.00021917,2]
[328446573,1717399848781,-500.0,0.00021917,2]
[328446574,1717399848790,-504.4712317,0.00021917,2]
[328446575,1717399848799,-500.0,0.00021917,2]
[328446576,1717399848809,-500.0,0.00021917,2]
[328446577,1717399848818,-500.33965424,0.00021917,2]
[328446578,1717399848828,-503.56374444,0.00021917,2]
[328446579,1717399848837,-500.0,0.00021917,2]
[328446580,1717399848846,-532.0079095,0.00021917,2]
[328446581,1717399848855,-501.62716547,0.00021917,2]
[328446582,1717399848864,-168.501189,0.00021917,2]
[328446583,1717399848873,-168.501189,0.00021917,2]
[328446585,1717399848883,-168.501189,0.00021917,2]
[328446586,1717399848892,-500.47427632,0.00021917,2]
[328446587,1717399848903,-168.501189,0.00021917,2]
[328446588,1717399848913,-168.501189,0.00021917,2]
[328446589,1717399848923,-168.501189,0.00021917,2]
[328446590,1717399848933,-501.00365506,0.00021917,2]
[328446591,1717399848942,-168.501189,0.00021917,2]
[328446592,1717399848951,-503.46976898,0.00021917,2]
[328446593,1717399848961,-168.501189,0.00021917,2]
[328446594,1717399848970,-168.501189,0.00021917,2]
[328446595,1717399848979,-168.501189,0.00021917,2]
[328446596,1717399848988,-168.501189,0.00021917,2]
[328446597,1717399848997,-168.501189,0.00021917,2]
[328446598,1717399849006,-1060.71,0.00021917,2]
[328446599,1717399849015,-1060.71,0.00021917,2]
[328446600,1717399849024,-1060.71,0.00021917,2]
[328446601,1717399849034,-502.22729511,0.00021917,2]
[328446602,1717399849043,-1060.71,0.00021917,2]
[328446603,1717399849052,-1060.71,0.00021917,2]
[328446604,1717399849061,-1060.71,0.00021917,2]
[328446605,1717399849070,-500.26511178,0.00021917,2]
[328446606,1717399849078,-500.0,0.00021917,2]
[328446607,1717399849087,-500.0,0.00021917,2]
[328446608,1717399849096,-202.43761525,0.00021917,2]
[328446609,1717399849106,-500.69250885,0.00021917,2]
[328446610,1717399849115,-199.3512251,0.00021917,2]
[328446611,1717399849123,-500.0,0.00021917,2]
[328446612,1717399849133,-503.28081054,0.00021917,2]
[328446613,1717399849142,-512.38,0.00021917,2]
[328446614,1717399849151,-521.59196919,0.00021917,2]
[328446615,1717399849159,-500.82837117,0.00021917,2]
[328446616,1717399849168,-500.0,0.00021917,2]
[328446617,1717399849178,-500.0,0.00021917,2]
[328446618,1717399849186,-500.0,0.00021917,2]
[328446619,1717399849195,-504.78905676,0.00021917,2]
[328446620,1717399849204,-505.02743677,0.00021917,2]
[328446621,1717399849213,-500.0,0.00021917,2]
[328446622,1717399849223,-502.12651786,0.00021917,2]
[328446623,1717399849232,-502.45371234,0.00021917,2]
[328446624,1717399849242,-1003.27708886,0.00021917,2]
[328446625,1717399849252,-500.0,0.00021917,2]
[328446626,1717399849262,-500.0,0.00021917,2]
[328446627,1717399849271,-500.0,0.00021917,2]
[328446628,1717399849281,-508.48085206,0.00021917,2]
[328446629,1717399849290,-500.0,0.00021917,2]
[328446630,1717399849299,-502.26547183,0.00021917,2]
[328446631,1717399849308,-500.0,0.00021917,2]
[328446632,1717399849317,-500.0,0.00021917,2]
[328446633,1717399849326,-500.0,0.00021917,2]
[328446634,1717399849338,-569.94074674,0.00021917,2]
[328446635,1717399849349,-502.0546942,0.00021917,2]
[328446636,1717399849358,-500.0,0.00021917,2]
[328446637,1717399849367,-503.11947193,0.00021917,2]
[328446638,1717399849376,-636.28,0.00021917,2]
[328446639,1717399849387,-840.85,0.00021917,2]
[328446640,1717399849395,-502.6243085,0.00021917,2]
[328446641,1717399849405,-504.86013238,0.00021917,2]
[328446642,1717399849414,-500.0,0.00021917,2]
[328446643,1717399849423,-504.2883392,0.00021917,2]
[328446644,1717399849434,-513.04484635,0.00021917,2]
[328446645,1717399849442,-500.75643665,0.00021917,2]
[328446646,1717399849451,-2411.18,0.00021917,2]
[328446647,1717399849461,-500.0,0.00021917,2]
[328446648,1717399849470,-500.0,0.00021917,2]
[328446649,1717399849479,-500.0,0.00021917,2]
[328446650,1717399849489,-500.0,0.00021917,2]
[328446651,1717399849498,-508.35980308,0.00021917,2]
[328446652,1717399849507,-503.76766027,0.00021917,2]
[328446653,1717399849516,-2142.56,0.00021917,2]
[328446654,1717399849524,-500.0,0.00021917,2]
[328446655,1717399849533,-520.25525745,0.00021917,2]
[328446656,1717399849543,-510.27934533,0.00021917,2]
[328446657,1717399849552,-539.44889214,0.00021917,2]
[328446658,1717399849561,-500.0,0.00021917,2]
[328446659,1717399849570,-498.09439491,0.00021917,2]
[328446660,1717399849579,-597.38,0.00021917,2]
[328446661,1717399849589,-500.0,0.00021917,2]
[328446662,1717399849598,-500.0,0.00021917,2]
[328446663,1717399849607,-500.0,0.00021917,2]
[328446664,1717399849616,-502.84262262,0.00021917,2]
[328446665,1717399849628,-501.57022481,0.00021917,2]
[328446666,1717399849637,-503.05324406,0.00021917,2]
[328446667,1717399849646,-500.0,0.00021917,2]
[328446668,1717399849655,-507.03455054,0.00021917,2]
[328446669,1717399849664,-500.0,0.00021917,2]
[328446670,1717399849673,-500.82948429,0.00021917,2]
[328446671,1717399849682,-500.0,0.00021917,2]
[328446672,1717399849692,-500.66651679,0.00021917,2]
[328446673,1717399849701,-839.55,0.00021917,2]
[328446674,1717399849711,-501.03416206,0.00021917,2]
[328446675,1717399849720,-500.29301829,0.00021917,2]
[328446676,1717399849729,-383.38681101,0.00021917,2]
[328446677,1717399849739,-500.72106281,0.00021917,2]
[328446678,1717399849748,-500.0,0.00021917,2]
[328446679,1717399849757,-311.818421,0.00021917,2]
[328446680,1717399849766,-571.88754663,0.00021917,2]
[328446681,1717399849775,-311.818421,0.00021917,2]
[328446682,1717399849785,-311.818421,0.00021917,2]
[328446683,1717399849795,-311.818421,0.00021917,2]
[328446684,1717399849804,-695.35,0.00021917,2]
[328446685,1717399849813,-311.818421,0.00021917,2]
[328446686,1717399849823,-311.818421,0.00021917,2]
[328446687,1717399849832,-500.0,0.00021917,2]
[328446688,1717399849841,-3149.15,0.00021917,2]
[328446689,1717399849851,-503.20825822,0.00021917,2]
[328446690,1717399849863,-311.818421,0.00021917,2]
[328446691,1717399849872,-500.0,0.00021917,2]
[328446692,1717399849882,-500.0,0.00021917,2]
[328446693,1717399849892,-311.818421,0.00021917,2]
[328446694,1717399849902,-311.818421,0.00021917,2]
[328446695,1717399849911,-500.68683523,0.00021917,2]
[328446696,1717399849920,-311.818421,0.00021917,2]
[328446697,1717399849930,-1190.57,0.00021917,2]
[328446698,1717399849939,-311.818421,0.00021917,2]
[328446699,1717399849948,-508.75253045,0.00021917,2]
[328446700,1717399849957,-151.0,0.00021917,2]
[328446701,1717399849966,-151.0,0.00021917,2]
[328446702,1717399849975,-311.818421,0.00021917,2]
[328446703,1717399849984,-151.0,0.00021917,2]
[328446704,1717399849994,-311.818421,0.00021917,2]
[328446705,1717399850003,-500.0,0.00021917,2]
[328446706,1717399850012,-311.818419,0.00021917,2]
[328446707,1717399850021,-151.0,0.00021917,2]
[328446708,1717399850031,-520.37341113,0.00021917,2]
[328446709,1717399850040,-151.0,0.00021917,2]
[328446710,1717399850050,-151.0,0.00021917,2]
[328446711,1717399850060,-151.0,0.00021917,2]
[328446712,1717399850069,-502.21858348,0.00021917,2]
[328446713,1717399850079,-500.0,0.00021917,2]
[328446714,1717399850088,-500.0,0.00021917,2]
[328446715,1717399850098,-604.12,0.00021917,2]
[328446716,1717399850107,-553.28,0.00021917,2]
[328446717,1717399850116,-151.0,0.00021917,2]
[328446718,1717399850125,-500.0,0.00021917,2]
[328446719,1717399850135,-500.0,0.00021917,2]
[328446720,1717399850146,-500.0,0.00021917,2]
[328446721,1717399850156,-9334.14,0.00021917,2]
[328446722,1717399850165,-300.76066308,0.00021917,2]
[328446723,1717399850175,-500.0,0.00021917,2]
[328446724,1717399850184,-500.0,0.00021917,2]
[328446725,1717399850195,-545.83703061,0.00021917,2]
[328446726,1717399850204,-507.54903678,0.00021917,2]
[328446727,1717399850213,-515.45931252,0.00021917,2]
[328446728,1717399850224,-500.86109681,0.00021917,2]
[328446729,1717399850234,-500.0,0.00021917,2]
[328446731,1717399850244,-500.0,0.00021917,2]
[328446732,1717399850254,-500.0,0.00021917,2]
[328446733,1717399850263,-500.0,0.00021917,2]
[328446734,1717399850271,-501.92314806,0.00021917,2]
[328446735,1717399850280,-547.75960681,0.00021917,2]
[328446737,1717399850289,-500.0,0.00021917,2]
[328446739,1717399850300,-150.26419224,0.00021917,2]
[328446741,1717399850309,-500.0,0.00021917,2]
[328446743,1717399850318,-508.18217613,0.00021917,2]
[328446745,1717399850328,-500.0,0.00021917,2]
[328446747,1717399850342,-3688.92,0.00021917,2]
[328446749,1717399850352,-500.0,0.00021917,2]
[328446751,1717399850361,-500.0,0.00021917,2]
[328446753,1717399850371,-501.87491112,0.00021917,2]
[328446755,1717399850381,-500.0,0.00021917,2]
[328446757,1717399850392,-502.33582006,0.00021917,2]
[328446759,1717399850402,-502.60980583,0.00021917,2]
[328446761,1717399850412,-501.57820878,0.00021917,2]
[328446763,1717399850425,-500.0,0.00021917,2]
[328446765,1717399850434,-500.76904604,0.00021917,2]
[328446767,1717399850443,-500.0,0.00021917,2]
[328446769,1717399850452,-500.0,0.00021917,2]
[328446771,1717399850461,-500.0,0.00021917,2]
[328446773,1717399850470,-500.0,0.00021917,2]
[328446775,1717399850479,-502.39173081,0.00021917,2]
[328446777,1717399850490,-500.0,0.00021917,2]
[328446778,1717399850499,-500.0,0.00021917,2]
[328446780,1717399850509,-500.0,0.00021917,2]
[328446783,1717399850518,-816.11,0.00021917,2]
[328446784,1717399850527,-505.0,0.00021917,2]
[328446787,1717399850536,-3026.71,0.00021917,2]
[328446790,1717399850546,-515.73139784,0.00021917,2]
[328446792,1717399850555,-500.0,0.00021917,2]
[328446795,1717399850564,-1397.47,0.00021917,2]
[328446799,1717399850574,-502.81305426,0.00021917,2]
[328446801,1717399850583,-1247.23,0.00021917,2]
[328446804,1717399850592,-765.74,0.00021917,2]
[328446807,1717399850601,-1200.01,0.00021917,2]
[328446810,1717399850611,-156.65916834,0.00021917,2]
[328446813,1717399850621,-151.0,0.00021917,2]
[328446815,1717399850630,-151.0,0.00021917,2]
[328446817,1717399850638,-151.0,0.00021917,2]
[328446819,1717399850647,-151.0,0.00021917,2]
[328446821,1717399850657,-151.0,0.00021917,2]
[328446824,1717399850667,-151.0,0.00021917,2]
[328446826,1717399850676,-500.0,0.00021917,2]
[328446828,1717399850685,-733.36,0.00021917,2]
[328446830,1717399850694,-1458.29,0.00021917,2]
[328446832,1717399850703,-502.98882085,0.00021917,2]
[328446834,1717399850712,-6052.59,0.00021917,2]
[328446836,1717399850721,-3861.05,0.00021917,2]
[328446838,1717399850730,-502.29713688,0.00021917,2]
[328446840,1717399850740,-500.0,0.00021917,2]
[328446842,1717399850749,-524.95488161,0.00021917,2]
[328446844,1717399850759,-500.0,0.00021917,2]
[328446846,1717399850768,-502.07092088,0.00021917,2]
[328446847,1717399850777,-500.0,0.00021917,2]
[328446848,1717399850786,-367.91774302,0.00021917,2]
[328446850,1717399850795,-504.80154156,0.00021917,2]
[328446851,1717399850804,-508.70532396,0.00021917,2]
[328446853,1717399850813,-500.0,0.00021917,2]
[328446855,1717399850823,-502.53253749,0.00021917,2]
[328446857,1717399850832,-504.54700957,0.00021917,2]
[328446859,1717399850841,-710.52,0.00021917,2]
[328446861,1717399850851,-500.0,0.00021917,2]
[328446863,1717399850860,-220.06532908,0.00021917,2]
[328446865,1717399850869,-500.0,0.00021917,2]
[328446867,1717399850878,-746.31,0.00021917,2]
[328446869,1717399850889,-1139.48,0.00021917,2]
[328446871,1717399850898,-500.0,0.00021917,2]
[328446873,1717399850907,-502.24047773,0.00021917,2]
[328446875,1717399850916,-502.06606891,0.00021917,2]
[328446877,1717399850926,-501.2442344,0.00021917,2]
[328446879,1717399850934,-168.12947647,0.00021917,2]
[328446881,1717399850944,-506.19642482,0.00021917,2]
[328446883,1717399850954,-501.31260136,0.00021917,2]
[328446885,1717399850963,-501.54739898,0.00021917,2]
[328446887,1717399850972,-500.0,0.00021917,2]
[328446889,1717399850981,-514.7039189,0.00021917,2]
[328446891,1717399850991,-818.22,0.00021917,2]
[328446893,1717399851000,-500.0,0.00021917,2]
[328446895,1717399851009,-502.6249921,0.00021917,2]
[328446897,1717399851018,-500.0,0.00021917,2]
[328446899,1717399851028,-2068.77,0.00021917,2]
[328446901,1717399851037,-502.73384805,0.00021917,2]
[328446903,1717399851046,-1002.79686411,0.00021917,2]
[328446905,1717399851055,-500.76188293,0.00021917,2]
[328446907,1717399851065,-636.15,0.00021917,2]
[328446909,1717399851074,-500.0,0.00021917,2]
[328446911,1717399851083,-503.09245307,0.00021917,2]
[328446913,1717399851092,-502.36834302,0.00021917,2]
[328446915,1717399851101,-156.20203822,0.00021917,2]
[328446917,1717399851111,-5775.07,0.00021917,2]
[328446919,1717399851120,-501.61842383,0.00021917,2]
[328446921,1717399851129,-500.0,0.00021917,2]
[328446923,1717399851138,-500.0,0.00021917,2]
[328446925,1717399851147,-736.88,0.00021917,2]
[328446927,1717399851157,-818.32,0.00021917,2]
[328446929,1717399851167,-652.28,0.00021917,2]
[328446931,1717399851176,-500.0,0.00021917,2]
[328446933,1717399851186,-2380.67,0.00021917,2]
[328446935,1717399851195,-151.0,0.00021917,2]
[328446937,1717399851205,-151.0,0.00021917,2]
[328446939,1717399851214,-151.0,0.00021917,2]
[328446941,1717399851224,-601.97053461,0.00021917,2]
[328446943,1717399851233,-151.0,0.00021917,2]
[328446945,1717399851244,-151.0,0.00021917,2]
[328446947,1717399851252,-151.0,0.00021917,2]
[328446949,1717399851261,-151.0,0.00021917,2]
[328446951,1717399851271,-500.0,0.00021917,2]
[328446952,1717399851280,-501.91409723,0.00021917,2]
[328446954,1717399851290,-500.0,0.00021917,2]
[328446956,1717399851300,-502.58065457,0.00021917,2]
[328446957,1717399851309,-1718.18,0.00021917,2]
[328446958,1717399851319,-500.0,0.00021917,2]
[328446960,1717399851328,-500.0,0.00021917,2]
[328446962,1717399851339,-508.72281018,0.00021917,2]
[328446964,1717399851352,-717.35,0.00021917,2]
[328446966,1717399851363,-557.89,0.00021917,2]
[328446968,1717399851372,-500.0,0.00021917,2]
[328446970,1717399851382,-176.047408,0.00021917,2]
[328446972,1717399851391,-176.047408,0.00021917,2]
[328446974,1717399851401,-176.047408,0.00021917,2]
[328446976,1717399851411,-176.047408,0.00021917,2]
[328446978,1717399851422,-176.047408,0.00021917,2]
[328446980,1717399851431,-503.48526423,0.00021917,2]
[328446982,1717399851442,-176.047408,0.00021917,2]
[328446984,1717399851451,-176.047408,0.00021917,2]
[328446986,1717399851461,-281.44807798,0.00021917,2]
[328446988,1717399851470,-176.047408,0.00021917,2]
[328446990,1717399851479,-176.047408,0.00021917,2]
[328446992,1717399851490,-176.047408,0.00021917,2]
[328446994,1717399851499,-176.047408,0.00021917,2]
[328446996,1717399851507,-2410.53,0.00021917,2]
[328446997,1717399851517,-176.047408,0.00021917,2]
[328446998,1717399851526,-176.047408,0.00021917,2]
[328446999,1717399851535,-372.7976046,0.00021917,2]
[328447000,1717399851544,-176.047408,0.00021917,2]
[328447001,1717399851554,-767.96,0.00021917,2]
[328447002,1717399851563,-500.0,0.00021917,2]
[328447003,1717399851573,-500.0,0.00021917,2]
[328447004,1717399851582,-500.0,0.00021917,2]
[328447005,1717399851591,-500.0,0.00021917,2]
[328447006,1717399851600,-682.21,0.00021917,2]
[328447007,1717399851610,-528.57483126,0.00021917,2]
[328447008,1717399851620,-500.0,0.00021917,2]
[328447009,1717399851629,-314.27911617,0.00021917,2]
[328447010,1717399851638,-600.18561687,0.00021917,2]
[328447011,1717399851649,-500.0,0.00021917,2]
[328447012,1717399851659,-503.35024924,0.00021917,2]
[328447013,1717399851669,-744.12,0.00021917,2]
[328447014,1717399851678,-500.0,0.00021917,2]
[328447015,1717399851687,-830.28,0.00021917,2]
[328447016,1717399851697,-500.0,0.00021917,2]
[328447017,1717399851706,-500.0,0.00021917,2]
[328447018,1717399851716,-1030.69,0.00021917,2]
[328447019,1717399851725,-518.07,0.00021917,2]
[328447020,1717399851735,-502.42984099,0.00021917,2]
[328447021,1717399851745,-500.0,0.00021917,2]
[328447022,1717399851755,-500.0,0.00021917,2]
[328447023,1717399851764,-500.0,0.00021917,2]
[328447024,1717399851773,-581.01,0.00021917,2]
[328447025,1717399851782,-501.34729386,0.00021917,2]
[328447026,1717399851792,-500.28484166,0.00021917,2]
[328447027,1717399851802,-523.93487402,0.00021917,2]
[328447028,1717399851812,-500.0,0.00021917,2]
[328447029,1717399851823,-1283.35,0.00021917,2]
[328447030,1717399851832,-1450.15,0.00021917,2]
[328447031,1717399851842,-1372.9,0.00021917,2]
[328447032,1717399851851,-500.0,0.00021917,2]
[328447033,1717399851861,-500.0,0.00021917,2]
[328447034,1717399851870,-500.0,0.00021917,2]
[328447035,1717399851880,-500.0,0.00021917,2]
[328447036,1717399851889,-880.03,0.00021917,2]
[328447037,1717399851899,-477.21287982,0.00021917,2]
[328447038,1717399851908,-500.0,0.00021917,2]
[328447039,1717399851918,-1000.0,0.00022,6]
[328447040,1717399851927,-2014.33420245,0.00022,2]
[328447041,1717399851937,-168.501189,0.00022,2]
[328447042,1717399851946,-168.501189,0.00022,2]
[328447043,1717399851955,-1060.71,0.0002219,2]
[328447044,1717399851965,-1060.71,0.0002219,2]
[328447045,1717399851974,-521.84471823,0.00022191,2]
[328447046,1717399851983,-151.0,0.00022191,2]
[328447047,1717399851994,-151.0,0.00022191,2]
[328447048,1717399852003,-151.0,0.00022191,2]
[328447049,1717399852013,-515.00717392,0.00022191,2]
[328447050,1717399852023,-503.26048599,0.00022191,2]
[328447051,1717399852032,-500.0,0.00022191,2]
[328447052,1717399852042,-500.0,0.00022191,2]
[328447053,1717399852051,-500.0,0.00022191,2]